[Event "WYCC U16 Open 2019"]
[Site "Mumbai"]
[Date "2019.10.09"]
[Round "8.13"]
[White "Soham Kamotra"]
[Black "Talukdar, Rohan"]
[Result "1-0"]
[ECO "A05"]
[WhiteElo "2091"]
[BlackElo "2369"]
[Annotator "ChessBase"]
[PlyCount "73"]
[EventDate "2019.10.02"]
[EventType "swiss"]
[EventCountry "IND"]
[SourceTitle "playchess.com"]
[Source "ChessBase"]
[SourceQuality "1"]
[TimeControl "40/5400+30:1800+30"]

1. Nf3 {[%emt 0:00:00]} Nf6 {[%emt 0:00:00]} 2. g3 {[%emt 0:00:00]} g6 {[%emt 0:00:00]} 3. Bg2 {[%emt 0:00:33]} Bg7 {[%emt 0:00:00]} 4. c4 {[%emt 0:00:05]} d5 {[%emt 0:00:35]} 5. cxd5 {[%emt 0:00:18]} Nxd5 {[%emt 0:00:14]} 6. Nc3 {[%emt 0:00:11]} Nxc3 {[%emt 0:00:24]} 7. bxc3 {[%emt 0:00:24]} O-O {[%emt 0:00:10]} 8. O-O {[%emt 0:00:10]} c5 {[%emt 0:00:34]} 9. Qc2 {[%emt 0:06:21]} Nc6 {[%emt 0:02:16]} 10. d3 {[%emt 0:01:46]} Qc7 {[%emt 0:03:02]} 11. Rb1 {[%emt 0:07:41]} e5 {[%emt 0:12:59]} 12. Ba3 {[%emt 0:10:54]} b6 {[%emt 0:08:55]} 13. Nd2 {[%emt 0:03:11]} Bb7 {[%emt 0:01:05]} 14. Nc4 {[%emt 0:00:57]} Rac8 {[%emt 0:11:56]} 15. Qb3 {[%emt 0:09:30]} Ba8 {[%emt 0:01:36]} 16. Ne3 {[%emt 0:06:06]} Na5 {[%emt 0:04:04]} 17. Qa4 {[%emt 0:00:09]} Bxg2 {[%emt 0:00:05]} 18. Kxg2 {[%emt 0:00:07]} f5 {[%emt 0:00:07]} 19. Nd5 {[%emt 0:01:05]} Qf7 {[%emt 0:00:39]} 20. c4 {[%emt 0:03:03]} f4 {[%emt 0:04:09]} 21. f3 {[%emt 0:09:13]} Nc6 {[%emt 0:03:44]} 22. Bb2 {[%emt 0:02:48]} h5 {[%emt 0:00:07]} 23. Rbe1 {[%emt 0:01:14]} g5 {[%emt 0:12:05]} 24. e3 {[%emt 0:04:52]} fxe3 {[%emt 0:01:58]} 25. Rxe3 {[%emt 0:00:19]} g4 {[%emt 0:08:31]} 26. f4 {[%emt 0:03:08]} exf4 {[%emt 0:03:55]} 27. Rxf4 {[%emt 0:01:05]} Qb7 {[%emt 0:00:12]} 28. Bxg7 {[%emt 0:00:28]} Qxg7 {[%emt 0:00:17]} 29. Qd1 {[%emt 0:02:29]} Ne5 {[%emt 0:06:58]} 30. Qe2 {[%emt 0:02:54]} Rce8 {[%emt 0:00:37]} 31. Ree4 {[%emt 0:06:21]} Kh7 {[%emt 0:01:27]} 32. Rxf8 {[%emt 0:03:52]} Qxf8 {[%emt 0:00:11]} 33. Rf4 {[%emt 0:00:12]} Nd7 {[%emt 0:03:37]} 34. Qf2 {[%emt 0:00:16]} Qd6 {[%emt 0:00:27]} 35. Rf7+ {[%emt 0:00:19]} Kh6 {[%emt 0:01:23]} 36. Qf5 {[%emt 0:01:16]} Qg6 {[%emt 0:01:43]} 37. Qf4+ {[%emt 0:00:33]} 1-0

[Event "WYCC U16 Open 2019"]
[Site "Mumbai"]
[Date "2019.10.09"]
[Round "8.14"]
[White "Manafov, Vugar"]
[Black "Mohamed Anees M"]
[Result "0-1"]
[ECO "D38"]
[WhiteElo "2357"]
[BlackElo "2126"]
[Annotator "ChessBase"]
[PlyCount "72"]
[EventDate "2019.10.02"]
[EventType "swiss"]
[EventCountry "IND"]
[SourceTitle "playchess.com"]
[Source "ChessBase"]
[SourceQuality "1"]
[TimeControl "40/5400+30:1800+30"]

1. d4 Nf6 2. c4 e6 3. Nf3 d5 4. Nc3 Bb4 5. cxd5 exd5 6. a3 Bxc3+ 7. bxc3 O-O 8. e3 b6 9. c4 Bb7 10. Bb2 Re8 11. Bd3 Nbd7 12. O-O Ne4 13. Qc2 dxc4 14. Bxc4 Ng5 15. Qf5 Nxf3+ 16. gxf3 Qf6 17. Qxf6 Nxf6 18. e4 Nh5 19. Kh1 Nf4 20. d5 Ng6 21. Rg1 Rad8 22. Rad1 c6 23. d6 Kf8 24. Rg5 Bc8 25. h4 f6 26. Rg3 Be6 27. Ba6 Ne5 28. f4 Nc4 29. Bxc4 Bxc4 30. e5 f5 31. Rdg1 Rd7 32. Rxg7 Rxg7 33. Rxg7 Kxg7 34. e6+ Kf8 35. Bg7+ Kxg7 36. d7 Kf8 0-1

[Event "WYCC U16 Open 2019"]
[Site "Mumbai"]
[Date "2019.10.09"]
[Round "8.15"]
[White "Tomiello, Lucas Costamilan"]
[Black "Cardoso Cardoso, Jose Gabriel"]
[Result "0-1"]
[ECO "B94"]
[WhiteElo "2107"]
[BlackElo "2313"]
[Annotator "ChessBase"]
[PlyCount "60"]
[EventDate "2019.10.02"]
[EventType "swiss"]
[EventCountry "IND"]
[SourceTitle "playchess.com"]
[Source "ChessBase"]
[SourceQuality "1"]
[TimeControl "40/5400+30:1800+30"]

1. e4 {[%emt 0:00:00]} c5 {[%emt 0:00:00]} 2. Nf3 {[%emt 0:00:00]} d6 {[%emt 0:00:00]} 3. d4 {[%emt 0:00:11]} cxd4 {[%emt 0:00:05]} 4. Nxd4 {[%emt 0:00:10]} Nf6 {[%emt 0:00:06]} 5. Nc3 {[%emt 0:00:11]} a6 {[%emt 0:00:07]} 6. Bg5 {[%emt 0:00:17]} Nbd7 {[%emt 0:00:18]} 7. Qd2 {[%emt 0:01:36]} e6 {[%emt 0:00:21]} 8. O-O-O {[%emt 0:01:01]} Qc7 {[%emt 0:01:05]} 9. f4 {[%emt 0:01:39]} Be7 {[%emt 0:01:40]} 10. Be2 {[%emt 0:04:28]} b5 {[%emt 0:05:08]} 11. Bf3 {[%emt 0:01:27]} Bb7 {[%emt 0:05:55]} 12. a3 {[%emt 0:02:09]} O-O {[%emt 0:09:05]} 13. g4 {[%emt 0:05:04]} Nb6 {[%emt 0:01:28]} 14. Qg2 {[%emt 0:13:49]} Nc4 {[%emt 0:06:38]} 15. Rd3 {[%emt 0:00:14]} Rfc8 {[%emt 0:01:58]} 16. h4 {[%emt 0:07:46]} Rab8 {[%emt 0:20:52]} 17. h5 {[%emt 0:04:02]} b4 {[%emt 0:03:32]} 18. axb4 {[%emt 0:00:38]} Ba8 {[%emt 0:07:10]} 19. Na2 {[%emt 0:10:09]} a5 {[%emt 0:11:26]} 20. Bh4 {[%emt 0:05:21]} d5 {[%emt 0:02:49]} 21. e5 {[%emt 0:03:23]} Ne4 {[%emt 0:01:48]} 22. g5 {[%emt 0:05:16]} axb4 {[%emt 0:08:11]} 23. g6 {[%emt 0:16:09]} Bxh4 {[%emt 0:00:02]} 24. Rxh4 {[%emt 0:01:22]} Nc5 {[%emt 0:03:31]} 25. gxh7+ {[%emt 0:02:44]} Kh8 {[%emt 0:00:24]} 26. h6 {[%emt 0:01:58]} Nxd3+ {[%emt 0:01:00]} 27. Kb1 {[%emt 0:00:02]} g6 {[%emt 0:01:10]} 28. cxd3 {[%emt 0:00:11]} Na3+ {[%emt 0:01:55]} 29. Ka1 {[%emt 0:00:12]} b3 {[%emt 0:01:08]} 30. Nc3 {[%emt 0:00:56]} Qa7 {[%emt 0:01:16]} 0-1

[Event "WYCC U16 Open 2019"]
[Site "Mumbai"]
[Date "2019.10.09"]
[Round "8.16"]
[White "Utsab Chatterjee"]
[Black "Galleguillos Alvarado, Maximilia"]
[Result "1-0"]
[ECO "B92"]
[WhiteElo "2211"]
[BlackElo "1894"]
[Annotator "ChessBase"]
[PlyCount "75"]
[EventDate "2019.10.02"]
[EventType "swiss"]
[EventCountry "IND"]
[SourceTitle "playchess.com"]
[Source "ChessBase"]
[SourceQuality "1"]
[TimeControl "40/5400+30:1800+30"]

1. e4 c5 2. Nf3 d6 3. d4 cxd4 4. Nxd4 Nf6 5. Nc3 a6 6. Be2 e5 7. Nb3 Be7 8. O-O O-O 9. Kh1 b6 10. Be3 Bb7 11. f3 Nbd7 12. a4 Rc8 13. Rf2 Rc7 14. Bf1 Qa8 15. Rd2 Rfc8 16. a5 b5 17. Bb6 Rxc3 18. bxc3 d5 19. exd5 Nxd5 20. Qe1 Qb8 21. Bf2 Nf8 22. Bg3 Bf6 23. Bd3 Nxc3 24. Bf5 Rc6 25. Rd3 b4 26. Re3 g6 27. Bd3 Nd7 28. Nd2 Kg7 29. Ne4 Qc7 30. Nxf6 Kxf6 31. f4 e4 32. f5 Qc8 33. fxg6 hxg6 34. Bxe4 Nxe4 35. Rxe4 Rxc2 36. Re2 Kg7 37. Bf2 Qc6 38. Bd4+ 1-0

[Event "WYCC U16 Open 2019"]
[Site "Mumbai"]
[Date "2019.10.10"]
[Round "9.1"]
[White "Aronyak Ghosh"]
[Black "Niemann, Hans Moke"]
[Result "1-0"]
[ECO "A10"]
[WhiteElo "2380"]
[BlackElo "2439"]
[Annotator "ChessBase"]
[PlyCount "83"]
[EventDate "2019.10.02"]
[EventType "swiss"]
[EventCountry "IND"]
[SourceTitle "playchess.com"]
[Source "ChessBase"]
[SourceQuality "1"]
[TimeControl "40/5400+30:1800+30"]

1. c4 {[%emt 0:00:00]} g6 {[%emt 0:01:01]} 2. g3 {[%emt 0:01:00]} Bg7 {[%emt 0:00:51]} 3. Bg2 {[%emt 0:00:48]} c5 {[%emt 0:00:34]} 4. Nc3 {[%emt 0:00:40]} Nh6 {[%emt 0:01:20]} 5. h4 {[%emt 0:05:31]} Nf5 {[%emt 0:08:04]} 6. h5 {[%emt 0:01:49]} d6 {[%emt 0:08:14]} 7. d3 {[%emt 0:05:08]} Nc6 {[%emt 0:02:06]} 8. h6 {[%emt 0:02:50]} Bf8 {[%emt 0:03:52]} 9. Bd2 {[%emt 0:03:14]} e6 {[%emt 0:01:31]} 10. Nf3 {[%emt 0:06:56]} Be7 {[%emt 0:00:21]} 11. a3 {[%emt 0:01:58]} a5 {[%emt 0:08:48]} 12. Nb5 {[%emt 0:07:57]} Bf6 {[%emt 0:03:55]} 13. Bc3 {[%emt 0:01:03]} e5 {[%emt 0:04:09]} 14. Nd2 {[%emt 0:04:21]} O-O {[%emt 0:02:38]} 15. Ne4 {[%emt 0:02:09]} Be7 {[%emt 0:00:14]} 16. Bd2 {[%emt 0:02:15]} Be6 {[%emt 0:06:30]} 17. Nbc3 {[%emt 0:01:36]} a4 {[%emt 0:06:03]} 18. e3 {[%emt 0:05:00]} Na5 {[%emt 0:01:00]} 19. Rb1 {[%emt 0:08:13]} b5 {[%emt 0:02:43]} 20. Nxb5 {[%emt 0:03:12]} d5 {[%emt 0:00:05]} 21. cxd5 {[%emt 0:00:24]} Bxd5 {[%emt 0:00:04]} 22. Bxa5 {[%emt 0:03:16]} Qxa5+ {[%emt 0:00:08]} 23. Nbc3 {[%emt 0:00:04]} Bb3 {[%emt 0:00:04]} 24. Qf3 {[%emt 0:04:14]} Qa6 {[%emt 0:00:54]} 25. g4 {[%emt 0:01:23]} Nh4 {[%emt 0:04:48]} 26. Rxh4 {[%emt 0:00:06]} Bxh4 {[%emt 0:00:04]} 27. g5 {[%emt 0:03:09]} Rac8 {[%emt 0:05:32]} 28. Nf6+ {[%emt 0:04:28]} Kh8 {[%emt 0:00:05]} 29. Qg4 {[%emt 0:00:08]} c4 {[%emt 0:02:44]} 30. d4 {[%emt 0:01:55]} Qb6 {[%emt 0:07:12]} 31. Nfd5 {[%emt 0:04:47]} Qb8 {[%emt 0:00:54]} 32. Rc1 {[%emt 0:00:22]} f6 {[%emt 0:06:30]} 33. Qxh4 {[%emt 0:03:19]} fxg5 {[%emt 0:00:06]} 34. Qxg5 {[%emt 0:00:05]} Rce8 {[%emt 0:00:02]} 35. Nf6 {[%emt 0:00:54]} Qd8 {[%emt 0:02:21]} 36. dxe5 {[%emt 0:00:17]} Re6 {[%emt 0:00:26]} 37. Bd5 {[%emt 0:00:31]} Re7 {[%emt 0:00:03]} 38. f4 {[%emt 0:00:50]} Qb6 {[%emt 0:00:18]} 39. Kf2 {[%emt 0:00:13]} Qb8 {[%emt 0:01:32]} 40. Bf3 {[%emt 0:00:26]} Ref7 {[%emt 0:01:13]} 41. Bd5 {[%emt 0:31:35]} Re7 {[%emt 0:30:11]} 42. e6 {[%emt 0:01:26]} 1-0

[Event "WYCC U16 Open 2019"]
[Site "Mumbai"]
[Date "2019.10.10"]
[Round "9.2"]
[White "Kushagra Mohan"]
[Black "Makarian, Rudik"]
[Result "1/2-1/2"]
[ECO "B90"]
[WhiteElo "2309"]
[BlackElo "2386"]
[Annotator "ChessBase"]
[PlyCount "64"]
[EventDate "2019.10.02"]
[EventType "swiss"]
[EventCountry "IND"]
[SourceTitle "playchess.com"]
[Source "ChessBase"]
[SourceQuality "1"]
[TimeControl "40/5400+30:1800+30"]

1. e4 c5 2. Nf3 d6 3. d4 cxd4 4. Nxd4 Nf6 5. Nc3 a6 6. f3 h5 7. Be3 e6 8. a4 Be7 9. Bc4 O-O 10. O-O b6 11. Qe2 Bb7 12. Bxe6 fxe6 13. Nxe6 Qd7 14. Nxf8 Bxf8 15. Bxb6 Qe6 16. Bf2 Nbd7 17. Rad1 Rc8 18. Rfe1 Ne5 19. Bd4 Ng6 20. Qe3 h4 21. h3 Be7 22. Qg5 Qf7 23. Qf5 Re8 24. Qa5 Bc8 25. Ne2 Bd8 26. Qd2 Nh5 27. Be3 Ne5 28. Nd4 Qg6 29. Kh1 Bb6 30. Ne2 Nc4 31. Qd5+ Be6 32. Qg5 Qxg5 1/2-1/2

[Event "WYCC U16 Open 2019"]
[Site "Mumbai"]
[Date "2019.10.10"]
[Round "9.3"]
[White "Daghli, Arash"]
[Black "Kacharava, Nikolozi"]
[Result "1-0"]
[ECO "D20"]
[WhiteElo "2387"]
[BlackElo "2428"]
[Annotator "NA"]
[PlyCount "141"]
[EventDate "2019.10.02"]
[EventType "swiss"]
[EventCountry "IND"]
[SourceTitle "playchess.com"]
[Source "ChessBase"]
[SourceQuality "1"]
[TimeControl "40/5400+30:1800+30"]

1. d4 {[%emt 0:00:00]} d5 {[%emt 0:00:00]} 2. c4 {[%emt 0:00:00]} dxc4 {[%emt 0:00:38]} 3. e4 {[%emt 0:01:31]} e5 {[%emt 0:00:57]} 4. Nf3 {[%emt 0:00:54]} exd4 {[%emt 0:00:24]} 5. Bxc4 {[%emt 0:00:35]} Nc6 {[%emt 0:00:37]} 6. O-O {[%emt 0:00:39]} Be6 {[%emt 0:00:25]} 7. Bxe6 {[%emt 0:00:44]} fxe6 {[%emt 0:00:10]} 8. Qb3 {[%emt 0:00:14]} Qd7 {[%emt 0:00:35]} 9. Qxb7 {[%emt 0:01:01]} Rb8 {[%emt 0:00:25]} 10. Qa6 {[%emt 0:00:01]} Nf6 {[%emt 0:00:38]} 11. Nbd2 {[%emt 0:00:02]} Bd6 {[%emt 0:00:58] D20: Queen's Gambit Accepted: 3 e3 and 3 e4} (11... Bb4 12. Qd3 Bxd2 13. Bxd2 Rxb2 14. Rac1 O-O 15. Rc5 Rfb8 16. Rfc1 R8b6 17. h3 h6 18. a4 Ne8 19. Bc3 R2b3 {1-0 (48) Wojtaszek,R (2746)-Socko,B (2604) Czech Republic 2016}) 12. a3 {[%emt 0:00:01]} O-O {[%emt 0:01:29]} 13. b4 {[%emt 0:01:27]} Ng4 {[%emt 0:00:30]} 14. Bb2 {[%emt 0:00:34]} Nce5 {[%emt 0:01:58]} 15. Nxe5 {[%emt 0:00:09]} Bxe5 {[%emt 0:00:46]} 16. h3 {[%emt 0:00:02]} Rb6 {[%emt 0:00:56]} 17. Qc4 {[%emt 0:00:02]} Rc6 {[%emt 0:00:56]} 18. Qb3 {[%emt 0:00:02]} d3 {[%emt 0:01:02]} 19. Bxe5 {[%emt 0:00:19]} Nxe5 {[%emt 0:00:09]} 20. Rac1 $146 {[%emt 0:00:09]} Rxc1 {[%emt 0:02:39]} 21. Rxc1 {[%emt 0:00:29]} Ng6 {[%emt 0:02:08]} 22. g3 {[%emt 0:13:35]} h5 {[%emt 0:03:30]} 23. Qc3 {[%emt 0:11:46]} Rf7 {[%emt 0:14:56]} 24. Qc6 {[%emt 0:19:13]} Qc8 {[%emt 0:16:23]} 25. Qc5 {[%emt 0:01:08]} Qa6 {[%emt 0:10:24]} 26. Rc3 {[%emt 0:01:48]} h4 {[%emt 0:01:35]} 27. Kg2 {[%emt 0:03:47]} hxg3 {[%emt 0:05:09]} 28. fxg3 {[%emt 0:00:02]} Qa4 {[%emt 0:02:15]} 29. Rb3 {[%emt 0:08:59]} Rd7 {[%emt 0:03:57]} 30. h4 {[%emt 0:03:54]} Qa6 {[%emt 0:05:46]} 31. Kf2 {[%emt 0:08:49]} e5 {[%emt 0:04:51]} ({Better is} 31... Qb6 $14) 32. Ke1 {[%emt 0:02:12]} ({White should play} 32. Rc3 $16) 32... Rf7 {[%emt 0:06:23]} 33. b5 {[%emt 0:02:02]} Qe6 {[%emt 0:06:41]} 34. Rxd3 {[%emt 0:00:02]} a6 {[%emt 0:01:21]} 35. bxa6 {[%emt 0:03:43]} Qxa6 {[%emt 0:00:07]} 36. Qc4 {[%emt 0:00:51]} Qb6 {[%emt 0:02:44]} 37. Rf3 {[%emt 0:00:52]} Nh8 {[%emt 0:00:25]} 38. Ke2 {[%emt 0:01:23]} g6 {[%emt 0:01:31]} 39. Qd5 $18 {[%emt 0:02:08]} Qb2 {[%emt 0:01:35]} 40. Rb3 {[%emt 0:02:40]} Qd4 {[%emt 0:00:46]} 41. Rb8+ {[%emt 0:39:19]} Kg7 {[%emt 0:30:14]} 42. Qxd4 {[%emt 0:02:29]} exd4 {[%emt 0:00:07]} 43. a4 {[%emt 0:01:22]} Rf6 {[%emt 0:00:00]} 44. Kd3 {[%emt 0:00:00]} Nf7 {[%emt 0:00:00]} 45. Kxd4 {[%emt 0:00:00]} Rd6+ {[%emt 0:00:00]} 46. Ke3 {[%emt 0:00:00]} Ra6 {[%emt 0:00:00]} 47. Rb4 {[%emt 0:00:00]} c5 {[%emt 0:00:00]} 48. Rc4 {[%emt 0:00:00]} Nd6 {[%emt 0:00:00]} 49. Rxc5 {[%emt 0:00:00]} Rxa4 {[%emt 0:00:00]} 50. Rc6 {[%emt 0:00:00]} Nf7 {[%emt 0:00:00]} 51. Kf4 {[%emt 0:00:00]} Ra2 {[%emt 0:00:00]} 52. Nf3 {[%emt 0:00:00]} Ra1 {[%emt 0:00:00]} 53. Rc7 {[%emt 0:00:00]} Kf8 {[%emt 0:00:00]} 54. g4 {[%emt 0:00:00]} Rf1 {[%emt 0:00:00]} 55. Ke3 {[%emt 0:00:00]} Ra1 {[%emt 0:00:00]} 56. e5 {[%emt 0:00:00]} Ra4 {[%emt 0:00:50]} 57. e6 {[%emt 0:00:00]} Nd6 {[%emt 0:00:32]} 58. Ng5 {[%emt 0:00:00]} Ke8 {[%emt 0:01:36]} 59. Kf3 {[%emt 0:00:00]} Nb5 {[%emt 0:01:03]} 60. Rg7 {[%emt 0:00:00]} Nd4+ {[%emt 0:00:30]} 61. Ke3 {[%emt 0:00:00]} Nc6 {[%emt 0:01:56]} 62. Nh7 {[%emt 0:00:56]} Ne7 {[%emt 0:01:43]} 63. Nf6+ {[%emt 0:02:34]} Kd8 {[%emt 0:00:01]} 64. Ng8 {[%emt 0:00:58]} Ra3+ {[%emt 0:01:50]} 65. Ke4 {[%emt 0:00:21]} Ra4+ {[%emt 0:00:03]} 66. Ke5 {[%emt 0:00:17]} Ra5+ {[%emt 0:00:15]} 67. Kf6 {[%emt 0:01:30]} Nd5+ {[%emt 0:00:39]} 68. Kf7 {[%emt 0:00:28]} Ra7+ {[%emt 0:01:11]} 69. Kf8 {[%emt 0:00:10]} Rxg7 {[%emt 0:00:58]} 70. Kxg7 {[%emt 0:00:01]} Ke8 {[%emt 0:00:45]} 71. Nf6+ {[%emt 0:00:01] Ne3} 1-0

[Event "WYCC U16 Open 2019"]
[Site "Mumbai"]
[Date "2019.10.10"]
[Round "9.4"]
[White "Avila Pavas, Santiago"]
[Black "Pogosyan, Stefan"]
[Result "0-1"]
[ECO "A25"]
[WhiteElo "2406"]
[BlackElo "2364"]
[Annotator "NA"]
[PlyCount "91"]
[EventDate "2019.10.02"]
[EventType "swiss"]
[EventCountry "IND"]
[SourceTitle "playchess.com"]
[Source "ChessBase"]
[SourceQuality "1"]
[TimeControl "40/5400+30:1800+30"]

1. c4 e5 2. Nc3 Nc6 3. g3 Nf6 4. Bg2 Bb4 5. a3 Bxc3 6. dxc3 {A25: English Opening vs King's Indian with ...Nc6 but without early d3} (6. bxc3 O-O 7. e4 d6 8. Ne2 a5 9. a4 Be6 10. d3 Qd7 11. h3 Ne8 12. Qb3 Nd8 13. f4 exf4 14. Bxf4 f5 15. exf5 Bxf5 {½-½ (34) Wanyama,H (2325)-Nsubuga,H (2222) Kampala 2018}) 6... O-O 7. e4 a5 8. a4 d6 9. Ne2 Be6 10. b3 Nd7 11. O-O $146 ({Predecessor:} 11. Be3 Nc5 12. Qc2 f5 13. Bxc5 dxc5 14. f4 {0-1 (51) Blaushtain,B (2199)-Hirsch,A (2040) Halle 2004}) 11... Nc5 12. Be3 Qc8 13. Bxc5 dxc5 14. Nc1 Rd8 15. Nd3 Rd6 16. Qe2 b6 17. Rad1 Qe8 18. f4 f6 19. Nb2 Rad8 20. Rd5 Bxd5 21. cxd5 exf4 22. gxf4 f5 23. Qc4 Ne7 24. e5 Rxd5 25. Bxd5+ Rxd5 ({Don't play} 25... Nxd5 26. Rf2 $17) 26. Nd1 $19 Qf7 27. Qe2 Rd8 28. Qc2 Qd5 29. Nf2 Qd2 30. Qxd2 Rxd2 31. c4 Nc6 32. Nd1 Nd4 33. Ne3 c6 34. Rf2 Rxf2 35. Kxf2 Kf7 36. h4 Ke6 37. h5 Nxb3 38. Ke2 Nd4+ 39. Kd3 g6 40. h6 Ke7 41. Ng2 Ne6 42. Kd2 g5 43. Ne3 Nxf4 44. Nxf5+ Ke6 45. Nd6 Kxe5 46. Nc8 0-1

[Event "WYCC U16 Open 2019"]
[Site "Mumbai"]
[Date "2019.10.10"]
[Round "9.5"]
[White "Bilych, Olexiy"]
[Black "Gharibyan, Mamikon"]
[Result "1-0"]
[ECO "C54"]
[WhiteElo "2281"]
[BlackElo "2388"]
[Annotator "ChessBase"]
[PlyCount "63"]
[EventDate "2019.10.02"]
[EventType "swiss"]
[EventCountry "IND"]
[SourceTitle "playchess.com"]
[Source "ChessBase"]
[SourceQuality "1"]
[TimeControl "40/5400+30:1800+30"]

1. e4 {[%emt 0:00:00]} e5 {[%emt 0:00:00]} 2. Nf3 {[%emt 0:00:00]} Nc6 {[%emt 0:00:00]} 3. Bc4 {[%emt 0:00:00]} Bc5 {[%emt 0:00:00]} 4. c3 {[%emt 0:00:00]} Nf6 {[%emt 0:00:05]} 5. d3 {[%emt 0:00:00]} O-O {[%emt 0:01:12]} 6. O-O {[%emt 0:00:00]} d6 {[%emt 0:00:42]} 7. Re1 {[%emt 0:00:12]} a5 {[%emt 0:01:02]} 8. h3 {[%emt 0:00:06]} h6 {[%emt 0:00:54]} 9. Bb5 {[%emt 0:00:08]} Na7 {[%emt 0:02:19]} 10. Ba4 {[%emt 0:03:21]} b5 {[%emt 0:03:02]} 11. Bc2 {[%emt 0:02:15]} Nc6 {[%emt 0:12:12]} 12. a3 {[%emt 0:15:29]} d5 {[%emt 0:13:28]} 13. d4 {[%emt 0:05:14]} exd4 {[%emt 0:11:40]} 14. e5 {[%emt 0:00:32]} d3 {[%emt 0:02:18]} 15. Qxd3 {[%emt 0:00:45]} Ne4 {[%emt 0:03:18]} 16. Be3 {[%emt 0:09:19]} Bxe3 {[%emt 0:07:38]} 17. Qxe3 {[%emt 0:00:24]} f5 {[%emt 0:05:40]} 18. exf6 {[%emt 0:02:02]} Qxf6 {[%emt 0:01:23]} 19. Nbd2 {[%emt 0:06:27]} Nd6 {[%emt 0:05:47]} 20. Qc5 {[%emt 0:04:15]} Bb7 {[%emt 0:04:55]} 21. Qxd5+ {[%emt 0:01:50]} Kh8 {[%emt 0:01:34]} 22. Ne4 {[%emt 0:09:31]} Nb4 {[%emt 0:01:30]} 23. axb4 {[%emt 0:00:07]} Bxd5 {[%emt 0:00:06]} 24. Nxf6 {[%emt 0:00:03]} gxf6 25. Nh4 {[%emt 0:03:03]} Rfe8 {[%emt 0:01:59]} 26. Rxe8+ {[%emt 0:02:36]} Rxe8 {[%emt 0:00:08]} 27. bxa5 {[%emt 0:00:18]} Re2 {[%emt 0:07:34]} 28. Ng6+ {[%emt 0:00:14]} Kg7 {[%emt 0:00:15]} 29. Nf4 {[%emt 0:00:07]} Rxc2 {[%emt 0:00:25]} 30. Nxd5 {[%emt 0:00:07]} Nc8 {[%emt 0:01:13]} 31. a6 Na7 {[%emt 0:00:15]} 32. Re1 {[%emt 0:01:37]} 1-0

[Event "WYCC U16 Open 2019"]
[Site "Mumbai"]
[Date "2019.10.10"]
[Round "9.6"]
[White "Raja Rithvik R"]
[Black "Soto, Miguel Angel"]
[Result "1/2-1/2"]
[ECO "E73"]
[WhiteElo "2369"]
[BlackElo "2283"]
[Annotator "NA"]
[PlyCount "129"]
[EventDate "2019.10.02"]
[EventType "swiss"]
[EventCountry "IND"]
[SourceTitle "playchess.com"]
[Source "ChessBase"]
[SourceQuality "1"]
[TimeControl "40/5400+30:1800+30"]

1. c4 Nf6 2. Nc3 g6 3. e4 d6 4. d4 Bg7 5. Be2 O-O 6. Be3 e5 7. d5 Na6 8. g4 Nc5 9. f3 a5 10. h4 Ne8 11. h5 f5 12. hxg6 hxg6 13. gxf5 gxf5 14. Qc2 f4 15. Bf2 Qe7 16. O-O-O b6 17. Bf1 Bf6 18. Bh3 Ng7 19. Bxc8 Raxc8 20. Nge2 Kf7 21. Kb1 Rh8 22. Nb5 Rxh1 23. Rxh1 Nd7 24. a3 Nf8 25. Na7 Ra8 26. Nc6 Qd7 27. Qa4 Ng6 28. Nc3 Rg8 29. b4 axb4 30. axb4 Nf8 31. Nb5 Ne8 32. Qd1 Rg7 33. Qf1 Nh7 34. Rh5 Ng5 35. Qh1 Rg6 36. Kb2 Kg8 37. Kb3 Qg7 38. Rh2 Nf7 39. Qf1 Kf8 40. c5 bxc5 41. bxc5 Rh6 42. Rxh6 Qxh6 43. Qg2 Qh5 44. cxd6 cxd6 45. Ba7 Ng5 46. Bb8 Be7 47. Nxe7 Kxe7 48. Kb4 Qh4 49. Qg1 Nf7 50. Qc1 Qh3 51. Qc3 Qd7 52. Ba7 Ng5 53. Bf2 Nf7 54. Bh4+ Kf8 55. Qe1 Qb7 56. Qc3 Qd7 57. Qe1 Qc8 58. Nc3 Qb7+ 59. Kc4 Qa6+ 60. Kb3 Nc7 61. Qe2 Qa1 62. Qc4 Ne8 63. Qc8 Qa7 64. Qe6 Qb7+ 65. Kc2 1/2-1/2

[Event "WYCC U16 Open 2019"]
[Site "Mumbai"]
[Date "2019.10.10"]
[Round "9.7"]
[White "Harshavardhan G B"]
[Black "Sankalp Gupta"]
[Result "1-0"]
[ECO "C00"]
[WhiteElo "2362"]
[BlackElo "2369"]
[Annotator "NA"]
[PlyCount "81"]
[EventDate "2019.10.02"]
[EventType "swiss"]
[EventCountry "IND"]
[SourceTitle "playchess.com"]
[Source "ChessBase"]
[SourceQuality "1"]
[TimeControl "40/5400+30:1800+30"]

1. e4 e6 2. d4 d5 3. Bd3 dxe4 4. Bxe4 Nf6 5. Bf3 Nbd7 6. Nc3 Bd6 7. Nb5 O-O 8. Ne2 e5 9. Nxd6 cxd6 10. Nc3 e4 11. Be2 Re8 12. O-O Nf8 13. Bg5 h6 14. Bh4 Ng6 15. Bg3 a6 16. d5 Ne7 17. a4 Nf5 18. Qd2 Bd7 19. Bf4 Rc8 20. a5 Qc7 21. Be3 Nxe3 22. fxe3 Re5 23. h3 Qc5 24. Rfd1 h5 25. Ra3 h4 26. Qd4 Qc7 27. Rb3 Rg5 28. Kf2 Bf5 29. Qb6 Qe7 30. Bf1 Qe5 31. Qxb7 Rc5 32. Qxa6 Qg3+ 33. Ke2 Bg6 34. Kd2 Nxd5 35. Ne2 Qf2 36. c4 Kh7 37. Rc1 Nxe3 38. Rxe3 d5 39. Qd6 d4 40. Qxd4 Rxa5 41. Rxe4 1-0

[Event "WYCC U16 Open 2019"]
[Site "Mumbai"]
[Date "2019.10.10"]
[Round "9.8"]
[White "Nogerbek, Kazybek"]
[Black "Utsab Chatterjee"]
[Result "1/2-1/2"]
[ECO "D37"]
[WhiteElo "2387"]
[BlackElo "2211"]
[Annotator "NA"]
[PlyCount "183"]
[EventDate "2019.10.02"]
[EventType "swiss"]
[EventCountry "IND"]
[SourceTitle "playchess.com"]
[Source "ChessBase"]
[SourceQuality "1"]
[TimeControl "40/5400+30:1800+30"]

1. d4 d5 2. Nf3 Nf6 3. c4 e6 4. Nc3 Be7 5. g3 O-O 6. Bg2 dxc4 7. Ne5 Nc6 8. Bxc6 bxc6 9. Nxc6 Qe8 10. Nxe7+ Qxe7 11. Qa4 c5 12. dxc5 Qxc5 13. Be3 Qh5 14. f3 Bb7 15. O-O Nd5 16. Qa5 Qg6 17. Bd4 Rfd8 18. Rfd1 a6 19. e4 Nxc3 20. Bxc3 Rdc8 21. Kf2 Bc6 22. Rd6 Bb5 23. Rad1 Qg5 24. Qb6 Be8 25. h4 Qc5+ 26. Qxc5 Rxc5 27. Ke3 Rcc8 28. g4 h6 29. f4 Rc6 30. f5 exf5 31. gxf5 Rxd6 32. Rxd6 f6 33. e5 fxe5 34. Bxe5 Ra7 35. Kf4 Kh7 36. f6 g5+ 37. hxg5 hxg5+ 38. Kxg5 Kg8 39. Rd4 Bb5 40. Rh4 Rf7 41. Bc3 Rf8 42. Re4 Re8 43. Kg6 Rf8 44. f7+ Rxf7 45. Rh4 Kf8 46. Bf6 Ke8 47. Rd4 Bd7 48. Re4+ Kf8 49. Rh4 Ke8 50. Rxc4 Kf8 51. Rh4 Ke8 52. Rd4 Kf8 53. Rd6 Bb5 54. Rd8+ Be8 55. Kf5 Rd7 56. Ra8 Rd6 57. Ra7 Bd7+ 58. Ke5 Re6+ 59. Kd5 Ke8 60. Be5 Rh6 61. a3 Bb5 62. b3 Kd8 63. a4 Bd7 64. Bd6 Rh5+ 65. Kd4 Be6 66. Be7+ Ke8 67. Bf6 Bxb3 68. Rxa6 Kd7 69. a5 Rd5+ 70. Kc3 Bd1 71. Bd4 Be2 72. Ra7+ Kc6 73. Re7 Ba6 74. Bb6 Rd7 75. Re6+ Rd6 76. Re8 Rd7 77. Bd4 Rd5 78. Bb6 Rd7 79. Kb4 Rd1 80. Re6+ Rd6 81. Re1 Rd7 82. Bc5 Rb7+ 83. Bb6 Rd7 84. Bg1 Rd6 85. Rc1+ Kb7 86. Rb1 Rd5 87. Ka4+ Bb5+ 88. Rxb5+ Rxb5 89. Kxb5 Ka8 90. a6 Kb8 91. Kb6 Ka8 92. a7 1/2-1/2